bitfinex/quotes_BTCUSD_20241202
["timestamp","ask_amount","ask_price","bid_price","bid_amount"]
[1733140912803,1.11321234,95200.0,95199.0,0.05484499]
[1733140913060,1.09678523,95200.0,95199.0,0.05484499]
[1733140913242,1.15481843,95200.0,95199.0,0.05484499]
[1733140913449,1.14581843,95200.0,95199.0,0.05484499]
[1733140913869,1.15481843,95200.0,95199.0,0.05484499]
[1733140914076,1.14581843,95200.0,95199.0,0.05484499]
[1733140914498,1.15081843,95200.0,95199.0,0.05484499]
[1733140914731,1.26131843,95200.0,95199.0,0.05484499]
[1733140914966,1.04798697,95200.0,95199.0,0.02669451]
[1733140915182,1.04298697,95200.0,95199.0,0.02669451]
[1733140915388,1.05698697,95200.0,95199.0,0.02669451]
[1733140915593,1.60048697,95200.0,95199.0,0.02669451]
[1733140915809,1.69431843,95200.0,95199.0,0.02669451]
[1733140916036,1.69831843,95200.0,95199.0,0.02669451]
[1733140916461,1.68931843,95200.0,95199.0,0.02669451]
[1733140916667,1.69831843,95200.0,95199.0,0.02669451]
[1733140917578,1.70331843,95200.0,95199.0,0.02669451]
[1733140917987,1.69831843,95200.0,95199.0,0.02669451]
[1733140918425,1.69431843,95200.0,95199.0,0.02669451]
[1733140918869,1.68189116,95200.0,95199.0,0.02669451]
[1733140919103,1.67289116,95200.0,95199.0,0.02669451]
[1733140919310,1.67789116,95200.0,95199.0,0.02669451]
[1733140919523,1.68689116,95200.0,95199.0,0.02669451]
[1733140919976,1.7081267,95200.0,95199.0,0.02669451]
[1733140921092,1.7031267,95200.0,95199.0,0.02669451]
[1733140921316,1.6941267,95200.0,95199.0,0.02669451]
[1733140921551,1.19030794,95200.0,95199.0,0.02669451]
[1733140921763,1.57329524,95200.0,95199.0,0.02669451]
[1733140921969,1.38972363,95200.0,95199.0,0.02669451]
[1733140922175,1.58472363,95200.0,95199.0,0.02669451]
[1733140922398,1.69255509,95200.0,95199.0,0.02669451]
[1733140922844,1.71555509,95200.0,95199.0,0.02669451]
[1733140923088,1.02973633,95200.0,95199.0,0.02669451]
[1733140923301,1.59872363,95200.0,95199.0,0.02669451]
[1733140923555,1.09053633,95200.0,95199.0,0.02669451]
[1733140923785,1.08553633,95200.0,95199.0,0.02669451]
[1733140924001,1.37635509,95200.0,95199.0,0.02669451]
[1733140924201,1.57635509,95200.0,95199.0,0.02842051]
[1733140924410,1.60021809,95200.0,95199.0,0.02842051]
[1733140924642,1.04271809,95200.0,95199.0,0.02842051]
[1733140924888,1.05671809,95200.0,95199.0,0.02842051]
[1733140925356,1.03048255,95200.0,95199.0,0.02842051]
[1733140925790,1.03548255,95200.0,95199.0,0.02842051]
[1733140926207,1.02648255,95200.0,95199.0,0.02842051]
[1733140926710,1.03548255,95200.0,95199.0,0.02842051]
[1733140927124,0.83548255,95200.0,95199.0,0.02842051]
[1733140927328,1.03548255,95200.0,95199.0,0.02842051]
[1733140927772,1.01905416,95200.0,95199.0,0.02842051]
[1733140929116,1.14125416,95200.0,95199.0,0.02842051]
[1733140930169,1.16269138,95200.0,95199.0,0.02842051]
[1733140930427,1.15369138,95200.0,95199.0,0.02842051]
[1733140930649,1.69219138,95200.0,95199.0,0.02842051]
[1733140930855,1.70619138,95200.0,95199.0,0.02842051]
[1733140931268,3.50788438,95200.0,95199.0,0.02842051]
[1733140931480,3.52988438,95200.0,95199.0,0.02842051]
[1733140931952,3.52988438,95200.0,95181.0,0.0017208]
[1733140931953,0.7288873,95184.0,95181.0,0.0017208]
[1733140932189,0.94701483,95184.0,95181.0,0.0017208]
[1733140932397,0.8741261,95184.0,95181.0,0.0017208]
[1733140933727,0.8831261,95184.0,95181.0,0.0017208]
[1733140933954,0.8781261,95184.0,95181.0,0.0017208]
[1733140934202,0.6861261,95184.0,95181.0,0.0017208]
[1733140934415,0.8861261,95184.0,95181.0,0.0017208]
[1733140934629,0.8821261,95184.0,95181.0,0.0017208]
[1733140934836,0.4991388,95184.0,95181.0,0.0017208]
[1733140935062,0.72803998,95184.0,95181.0,0.0017208]
[1733140935491,0.49445268,95184.0,95181.0,0.0017208]
[1733140935721,0.5512261,95184.0,95181.0,0.0017208]
[1733140935948,0.1682388,95184.0,95181.0,0.0017208]
[1733140936367,0.1762388,95184.0,95181.0,0.0017208]
[1733140936885,0.3592261,95184.0,95181.0,0.0017208]
[1733140937125,0.5592261,95184.0,95181.0,0.0017208]
[1733140937330,0.62277871,95184.0,95181.0,0.0017208]
[1733140937554,0.43979141,95184.0,95181.0,0.0017208]
[1733140937762,0.44579141,95184.0,95181.0,0.0017208]
[1733140937974,0.62877871,95184.0,95181.0,0.0017208]
[1733140938239,0.62277871,95184.0,95181.0,0.0017208]
[1733140938675,0.62577871,95184.0,95181.0,0.0017208]
[1733140939129,0.69080909,95184.0,95181.0,0.0017208]
[1733140939829,0.64220909,95184.0,95181.0,0.0017208]
[1733140940038,0.57865648,95184.0,95181.0,0.0017208]
[1733140940958,0.39566918,95184.0,95181.0,0.0017208]
[1733140941165,0.59938857,95184.0,95181.0,0.0017208]
[1733140941584,0.37638857,95184.0,95181.0,0.0017208]
[1733140941800,0.32305055,95184.0,95181.0,0.0017208]
[1733140942916,0.14006325,95184.0,95181.0,0.0017208]
[1733140943392,0.14006325,95184.0,95183.0,0.0828204]
[1733140944099,0.03721804,95184.0,95183.0,0.0828204]
[1733140944312,0.02078766,95184.0,95183.0,0.1293204]
[1733140944735,0.011,95184.0,95183.0,0.1293204]
[1733140947071,0.011,95184.0,95183.0,0.1303126]
[1733140947730,0.011,95184.0,95183.0,0.3404336]
[1733140948452,0.011,95184.0,95183.0,0.41667474]
[1733140949833,0.003,95184.0,95183.0,0.41667474]
[1733140950677,0.0008624,95199.0,95183.0,0.41667474]
[1733140950678,0.0008624,95199.0,95198.0,0.210088]
[1733140951119,0.01071567,95199.0,95198.0,0.335388]
[1733140951549,0.0008624,95199.0,95198.0,0.335388]
[1733140951772,0.0008624,95199.0,95198.0,0.4109463]
[1733140951984,0.0008624,95199.0,95198.0,0.53080421]
[1733140952302,0.000863,95210.0,95198.0,0.53080421]
[1733140952303,0.000863,95210.0,95209.0,0.210064]
[1733140952518,0.000863,95210.0,95209.0,0.21192281]
[1733140953051,0.000863,95210.0,95209.0,0.29002281]
[1733140953262,0.000863,95210.0,95209.0,0.38377308]
[1733140953470,0.000863,95210.0,95209.0,0.17370908]
[1733140953679,0.001863,95210.0,95209.0,0.1277]
[1733140954101,0.001863,95210.0,95209.0,0.0821]
[1733140954318,0.01171627,95210.0,95209.0,0.0821]
[1733140954526,0.000863,95210.0,95209.0,0.0781]
[1733140954989,0.000863,95210.0,95209.0,0.0841]
[1733140955334,0.001863,95210.0,95209.0,0.0841]
[1733140955537,0.001863,95210.0,95209.0,0.006]
[1733140956170,0.002863,95210.0,95209.0,0.01]
[1733140956579,0.001863,95210.0,95209.0,0.006]
[1733140956802,0.001863,95210.0,95209.0,0.01]
[1733140957033,0.002863,95210.0,95209.0,0.01]
[1733140957262,0.01278844,95210.0,95209.0,0.01]
[1733140957472,0.002863,95210.0,95209.0,0.01]
[1733140957696,0.01278844,95210.0,95209.0,0.01]
[1733140957937,0.002863,95210.0,95209.0,0.01]
[1733140958397,0.01178844,95210.0,95209.0,0.01]
[1733140958611,0.001863,95210.0,95209.0,0.01]
[1733140958839,0.01178844,95210.0,95209.0,0.01]
[1733140959046,0.001863,95210.0,95209.0,0.01]
[1733140959281,0.01178844,95210.0,95209.0,0.01]
[1733140959491,0.001863,95210.0,95209.0,0.01]
[1733140959720,0.01178844,95210.0,95209.0,0.01927812]
[1733140959951,0.001863,95210.0,95209.0,0.01927812]
[1733140961078,0.001863,95210.0,95209.0,0.01]
[1733140961561,0.0027254,95210.0,95209.0,0.01]
[1733140961827,0.0027254,95210.0,95209.0,0.01185898]
[1733140962045,0.0027254,95210.0,95209.0,0.06175898]
[1733140962273,0.0027254,95210.0,95209.0,0.14345898]
[1733140962541,0.0027254,95210.0,95209.0,0.2209244]
[1733140962766,0.0027254,95210.0,95209.0,0.21906542]
[1733140964374,0.0017254,95210.0,95209.0,0.21506542]
[1733140965317,0.0008624,95210.0,95209.0,0.20906542]
[1733140965532,0.0008624,95210.0,95209.0,0.21092422]
[1733140965960,0.0018624,95210.0,95209.0,0.21592422]
[1733140966172,0.0028624,95210.0,95209.0,0.21992422]
[1733140966428,0.0008624,95210.0,95209.0,0.20906542]
[1733140966657,0.0008624,95210.0,95209.0,0.21092422]
[1733140966881,0.0028624,95210.0,95209.0,0.21892422]
[1733140967090,0.0028624,95210.0,95209.0,0.21706542]
[1733140970937,0.0028624,95210.0,95209.0,0.34291063]
[1733140971817,0.0028624,95210.0,95209.0,0.35992333]
[1733140974071,0.0028624,95210.0,95209.0,0.36164793]
[1733140977124,0.0028624,95210.0,95209.0,0.1314373]
[1733140977352,0.0028624,95210.0,95209.0,0.13329606]
[1733140978459,0.0028624,95210.0,95209.0,0.23614127]
[1733140978678,0.0028624,95210.0,95209.0,0.28398251]
[1733140983773,0.0028624,95210.0,95209.0,0.48398251]
[1733140983951,0.0028624,95210.0,95209.0,0.58681397]
[1733140984517,0.0028624,95210.0,95209.0,0.73681397]
[1733140984951,0.0028624,95210.0,95209.0,0.73281397]
[1733140985171,0.0018624,95210.0,95209.0,0.73281397]
[1733140985373,0.0028624,95210.0,95209.0,0.73781397]
[1733140985748,0.0008628,95225.0,95224.0,0.233031]
[1733140985986,0.0008628,95225.0,95224.0,0.88740045]
[1733140986189,0.0008628,95225.0,95224.0,0.68740045]
[1733140986408,0.0008628,95225.0,95224.0,0.63970045]
[1733140986646,0.0008628,95225.0,95224.0,0.023984]
[1733140986848,0.3430908,95225.0,95224.0,0.000984]
[1733140987157,0.210053,95215.0,95209.0,0.0157246]
[1733140987411,0.3430908,95225.0,95209.0,0.0067246]
[1733140987412,0.210048,95217.0,95209.0,0.0067246]
[1733140987605,0.210041,95220.0,95209.0,0.0067246]
[1733140987809,0.00901446,95216.0,95209.0,0.02840486]
[1733140988038,0.1829873,95224.0,95209.0,0.02840486]
[1733140988039,0.210036,95222.0,95209.0,0.02840486]
[1733140988264,0.00901338,95215.0,95209.0,0.02340486]
[1733140988458,0.210052,95215.0,95209.0,0.0017246]
[1733140988727,0.00901338,95214.0,95209.0,0.0017246]
[1733140988948,0.210055,95213.0,95209.0,0.0017246]
[1733140989172,0.00901338,95214.0,95209.0,0.0017246]
[1733140989384,0.00901338,95212.0,95209.0,0.0017246]
[1733140989597,0.210059,95211.0,95209.0,0.0017246]
[1733140989797,0.21907238,95211.0,95209.0,0.0017246]
[1733140990014,0.00901338,95211.0,95209.0,0.0017246]
[1733140990237,0.210054,95214.0,95209.0,0.0047246]
[1733140990440,0.00901338,95210.0,95209.0,0.0047246]
[1733140990669,0.210061,95211.0,95209.0,0.0017246]
[1733140990911,0.00901338,95210.0,95209.0,0.0057246]
[1733140991125,0.00901338,95210.0,95209.0,0.0037246]
[1733140991551,0.210061,95210.0,95209.0,0.0037246]
[1733140991753,0.00901338,95210.0,95209.0,0.0017246]
[1733140991961,0.21907438,95210.0,95209.0,0.0037246]
[1733140992177,0.210061,95210.0,95209.0,0.0037246]
[1733140992397,0.21907438,95210.0,95209.0,0.0037246]
[1733140992610,0.68240281,95210.0,95209.0,0.0047246]
[1733140992811,0.63010689,95210.0,95209.0,0.0047246]
[1733140993015,0.63010689,95210.0,95209.0,0.0017246]
[1733140993216,0.63010689,95210.0,95209.0,0.0140676]
[1733140993443,0.63010689,95210.0,95209.0,0.0160676]
[1733140993873,0.63010689,95210.0,95209.0,0.0200676]
[1733140994782,0.63010689,95210.0,95209.0,0.0180676]
[1733140995225,0.63010689,95210.0,95209.0,0.01815005]
[1733140997823,0.63010689,95210.0,95209.0,0.01987465]
[1733140998030,0.31806298,95210.0,95209.0,0.01987465]
[1733140998238,0.52812398,95210.0,95209.0,0.01987465]
[1733141000511,0.63096919,95210.0,95209.0,0.01987465]
[1733141008884,0.58376919,95210.0,95209.0,0.01987465]
[1733141009109,0.40292398,95210.0,95209.0,0.01987465]
[1733141009336,0.19286298,95210.0,95209.0,0.01987465]
[1733141011754,0.00987568,95210.0,95209.0,0.01987465]
[1733141013133,0.0008623,95210.0,95209.0,0.01987465]
[1733141013394,0.00979402,95210.0,95209.0,0.01987465]
[1733141014105,0.0008623,95210.0,95209.0,0.01987465]
[1733141015220,0.0008623,95210.0,95209.0,0.00887465]
[1733141015687,0.0008623,95210.0,95209.0,0.01387465]
[1733141015906,0.0008623,95210.0,95209.0,0.01087465]
[1733141016127,0.0008623,95210.0,95209.0,0.00887465]
[1733141016343,0.0008623,95210.0,95209.0,0.01287465]
[1733141016589,0.0008623,95210.0,95209.0,0.01487465]
[1733141017019,0.0008623,95210.0,95209.0,0.01087465]
[1733141017946,0.0008623,95210.0,95209.0,0.00887465]
[1733141018167,0.0008623,95210.0,95209.0,0.01087465]
[1733141018821,0.0008623,95210.0,95209.0,0.01487465]
[1733141019483,0.1738496,95219.0,95210.0,0.210061]
[1733141019927,0.00893172,95218.0,95209.0,0.08140825]
[1733141020197,0.00893172,95218.0,95209.0,0.01487465]
[1733141020449,0.00893172,95217.0,95211.0,0.210059]
[1733141020671,0.00893172,95217.0,95216.0,0.210048]
[1733141020864,0.1738496,95220.0,95212.0,0.210057]
[1733141021111,0.00893172,95217.0,95213.0,0.0009856]
[1733141021323,0.1738496,95223.0,95214.0,0.04318371]
[1733141021565,0.00893172,95216.0,95214.0,0.04318371]
[1733141021801,0.1738496,95219.0,95213.0,0.0009856]
[1733141022022,0.00894964,95215.0,95213.0,0.0009856]
[1733141022249,0.1738496,95219.0,95213.0,0.0009856]
[1733141022463,0.00894964,95214.0,95213.0,0.0009856]
[1733141022673,0.1738496,95219.0,95213.0,0.0009856]
[1733141022893,0.1738496,95219.0,95214.0,0.001]
[1733141023335,0.1738496,95219.0,95214.0,0.04409863]
[1733141023549,0.0778,95224.0,95214.0,0.04409863]
[1733141023753,0.0778,95224.0,95214.0,0.001]
[1733141024030,0.1738496,95219.0,95214.0,0.001]
[1733141024507,0.0778,95224.0,95214.0,0.001]
[1733141024718,0.1738496,95223.0,95213.0,0.2110396]
[1733141024934,0.1738496,95223.0,95213.0,0.25403692]
[1733141025156,0.1738496,95223.0,95213.0,0.04398292]
[1733141025385,0.1738496,95223.0,95213.0,0.25403592]
[1733141025656,0.1738496,95223.0,95213.0,0.04398292]
[1733141025865,0.1738496,95223.0,95213.0,0.0009856]
[1733141026292,0.1748496,95223.0,95213.0,0.0009856]
[1733141027183,0.210035,95222.0,95213.0,0.0009856]
[1733141027433,0.1748496,95223.0,95213.0,0.0009856]
[1733141028333,0.1738496,95223.0,95213.0,0.0009856]
[1733141028574,0.001,95222.0,95214.0,0.210053]
[1733141029014,0.1738496,95223.0,95213.0,0.01543856]
[1733141029015,0.1738496,95223.0,95213.0,0.22549256]
[1733141029476,0.1748496,95223.0,95213.0,0.22549256]
[1733141029911,0.1738496,95223.0,95213.0,0.22549256]
[1733141030097,0.1738496,95223.0,95213.0,0.01543856]
[1733141030305,0.1738496,95223.0,95214.0,0.25377972]
[1733141031361,0.3858836,95223.0,95213.0,0.0009856]
[1733141031571,0.001,95222.0,95213.0,0.0009856]
[1733141031997,0.001,95222.0,95213.0,0.0081366]
[1733141032195,0.3858836,95223.0,95213.0,0.0081366]
[1733141032439,0.210042,95219.0,95213.0,0.0081366]
[1733141032657,0.1748496,95223.0,95213.0,0.0081366]
[1733141032872,0.210049,95216.0,95213.0,0.0081366]
[1733141033103,0.1758496,95223.0,95213.0,0.009861]
[1733141033385,0.00897749,95215.0,95213.0,0.009861]
[1733141033596,0.210043,95219.0,95213.0,0.009861]
[1733141034023,0.210052,95215.0,95213.0,0.009861]
[1733141034248,0.210047,95217.0,95213.0,0.009861]
[1733141034522,0.0459,95216.0,95213.0,0.009861]
[1733141034781,0.21005,95215.0,95213.0,0.0088754]
[1733141035042,0.27669481,95214.0,95213.0,0.0098754]
[1733141035254,0.3668723,95214.0,95213.0,0.0098754]
[1733141035726,0.3668723,95214.0,95213.0,0.0088754]
[1733141036225,0.3668723,95214.0,95213.0,0.0108754]
[1733141036656,0.26402709,95214.0,95213.0,0.0108754]
[1733141036852,0.26402709,95214.0,95213.0,0.0098754]
[1733141038012,0.26402709,95214.0,95213.0,0.0088754]
[1733141038475,0.26402709,95214.0,95213.0,0.0098754]
[1733141038685,0.26402709,95214.0,95213.0,0.0118754]
[1733141040058,0.09017749,95214.0,95213.0,0.0118754]
[1733141040283,0.00897749,95214.0,95213.0,0.0118754]
[1733141040739,0.5939496,95216.0,95213.0,0.0118754]
[1733141041049,0.00896509,95214.0,95213.0,0.0118754]
[1733141041054,0.5939496,95216.0,95213.0,0.0118754]
[1733141041298,0.210053,95214.0,95213.0,0.0118754]
[1733141041756,0.21901809,95214.0,95213.0,0.0108754]
[1733141042691,0.21901809,95214.0,95213.0,0.0088754]
[1733141042931,0.21901809,95214.0,95213.0,0.0108754]
[1733141043186,0.21901809,95214.0,95213.0,0.0098754]
[1733141043427,0.6200129,95214.0,95213.0,0.0098754]
[1733141043864,0.65275531,95214.0,95213.0,0.0118754]
[1733141045892,0.65275531,95214.0,95213.0,0.0098754]
[1733141049260,0.6200129,95214.0,95213.0,0.0098754]
[1733141052099,0.51716769,95214.0,95213.0,0.0098754]
[1733141052789,0.47136769,95214.0,95213.0,0.0098754]
[1733141055675,0.39286769,95214.0,95213.0,0.0098754]
[1733141056851,0.00896509,95214.0,95213.0,0.0098754]
[1733141057070,0.2109102,95217.0,95213.0,0.0098754]
[1733141057299,0.00893825,95214.0,95213.0,0.0098754]
[1733141057529,0.0008622,95217.0,95213.0,0.0098754]
[1733141057961,0.00893825,95216.0,95213.0,0.0098754]
[1733141058189,0.00893825,95216.0,95213.0,0.0088754]
[1733141060455,0.00893825,95216.0,95214.0,0.02407116]
[1733141060699,0.00893825,95216.0,95215.0,0.0018588]
[1733141060926,0.0008622,95217.0,95216.0,0.1277]
[1733141061163,0.0008622,95217.0,95216.0,0.12955855]
[1733141062504,0.0018622,95217.0,95216.0,0.13855855]
[1733141062729,0.0018622,95217.0,95216.0,0.21909717]
[1733141062951,0.0018622,95217.0,95216.0,0.21723862]
[1733141063377,0.0018622,95217.0,95216.0,0.22223862]
[1733141064357,0.0018622,95217.0,95216.0,0.24523862]
[1733141065033,0.0018622,95217.0,95216.0,0.37423423]
[1733141065294,0.0018622,95217.0,95216.0,0.52423423]
[1733141066174,0.0018622,95217.0,95216.0,0.72423423]
[1733141066385,0.0018622,95217.0,95216.0,0.71923423]
[1733141066868,0.0018622,95217.0,95216.0,0.72423423]
[1733141067514,0.0008622,95217.0,95216.0,0.71023423]
[1733141067973,0.0008622,95217.0,95216.0,0.71923423]
[1733141068410,0.0008622,95217.0,95216.0,0.71823423]
[1733141068631,0.0008622,95217.0,95216.0,0.72723423]
[1733141070655,0.0798,95265.0,95224.0,0.7327814]
[1733141070893,0.0798,95265.0,95224.0,0.93945147]
[1733141072105,0.209944,95264.0,95224.0,0.94845147]
[1733141072546,0.081,95257.0,95224.0,0.94845147]
[1733141072769,0.0457,95249.0,95224.0,0.74845147]
[1733141072983,0.0457,95249.0,95224.0,0.72545147]
[1733141073841,0.0457,95249.0,95224.0,0.73245147]
[1733141074309,0.0457,95249.0,95224.0,0.75545147]
[1733141074537,0.0457,95249.0,95224.0,0.95545147]
[1733141074965,0.13,95257.0,95224.0,0.95545147]
[1733141076348,0.339959,95257.0,95224.0,0.95545147]
[1733141076801,0.13,95257.0,95224.0,0.95545147]
[1733141077844,0.339959,95257.0,95224.0,0.95545147]
[1733141078277,0.0786,95239.0,95224.0,0.48185147]
[1733141078529,0.420009,95236.0,95224.0,0.0169934]
[1733141078761,0.0786,95239.0,95224.0,0.0169934]
[1733141078988,0.0786,95239.0,95224.0,0.01885187]
[1733141079250,0.1738496,95250.0,95224.0,0.01885187]
[1733141079251,0.1738496,95263.0,95224.0,0.22944748]
[1733141079489,0.0786,95246.0,95224.0,0.22758901]
[1733141079909,0.0786,95246.0,95224.0,0.44158901]
[1733141080129,0.0786,95246.0,95224.0,0.55242047]
[1733141080806,0.0786,95246.0,95224.0,0.54542047]
[1733141081461,0.0786,95246.0,95224.0,0.53742047]
[1733141081687,0.0786,95246.0,95224.0,0.55242047]
[1733141081924,0.0786,95246.0,95224.0,0.55942047]
[1733141082160,0.0786,95246.0,95224.0,0.55042047]
[1733141082397,0.0786,95246.0,95224.0,0.26882047]
[1733141082632,0.0018628,95225.0,95224.0,0.27782047]
[1733141083300,0.0018628,95225.0,95224.0,0.47782047]
[1733141085274,0.0018628,95225.0,95224.0,0.27782047]
[1733141085740,0.0018628,95225.0,95224.0,0.14883861]
[1733141085956,0.01088004,95225.0,95224.0,0.17684752]
[1733141086390,0.01088004,95225.0,95224.0,0.15069712]
[1733141086607,0.0018628,95225.0,95224.0,0.14883861]
[1733141086836,0.01087359,95225.0,95224.0,0.14883861]
[1733141087065,0.0018628,95225.0,95224.0,0.23652656]
[1733141087307,0.0018628,95225.0,95224.0,0.23466805]
[1733141087546,0.0018628,95225.0,95224.0,0.20851765]
[1733141087786,0.0008628,95225.0,95224.0,0.20137614]
[1733141088019,0.0008628,95225.0,95224.0,0.07553093]
[1733141088230,0.00987359,95225.0,95224.0,0.00285189]
[1733141088446,0.0008628,95225.0,95224.0,0.00285189]
[1733141088659,0.0018628,95225.0,95224.0,0.1376971]
[1733141089084,0.0018628,95225.0,95224.0,0.1426971]
[1733141089312,0.0008628,95225.0,95224.0,0.21376609]
[1733141089532,0.0018628,95225.0,95224.0,0.21676609]
[1733141089729,0.0018628,95225.0,95224.0,0.2149076]
[1733141089951,0.0018628,95225.0,95224.0,0.366758]
[1733141090647,0.0018628,95225.0,95224.0,0.241058]
[1733141091227,0.0018628,95225.0,95224.0,0.246058]
[1733141091472,0.0008628,95225.0,95224.0,0.238058]
[1733141091713,0.0008628,95225.0,95224.0,0.233058]
[1733141091926,0.0018628,95225.0,95224.0,0.26357168]
[1733141092182,0.0008628,95225.0,95224.0,0.25457168]
[1733141092416,0.0018628,95225.0,95224.0,0.26957168]
[1733141093381,0.0018628,95225.0,95224.0,0.2219076]
[1733141093598,0.0018628,95225.0,95224.0,0.248058]
[1733141094313,0.0018628,95225.0,95224.0,0.2219076]
[1733141094539,0.0018628,95225.0,95224.0,0.248058]
[1733141094733,0.0018628,95225.0,95224.0,0.2219076]
[1733141099376,0.0018628,95225.0,95224.0,0.598058]
[1733141099617,0.0018628,95225.0,95224.0,0.723958]
[1733141100769,0.0018628,95225.0,95224.0,0.678258]
[1733141101237,0.0018628,95225.0,95224.0,0.598058]
[1733141101704,0.0018628,95225.0,95224.0,0.398058]
[1733141103627,0.0018628,95225.0,95224.0,0.11883861]
[1733141103851,0.0018628,95225.0,95224.0,0.0159934]
[1733141104579,0.0018628,95225.0,95224.0,0.1206972]
[1733141105038,0.0818628,95225.0,95224.0,0.0389934]
[1733141105254,0.0818628,95225.0,95224.0,0.0159934]
[1733141105704,0.0818628,95225.0,95224.0,0.05977258]
[1733141106913,0.0818628,95225.0,95224.0,0.0159934]
[1733141107381,0.09095718,95225.0,95224.0,0.0159934]
[1733141107833,0.13915718,95225.0,95224.0,0.0159934]
[1733141108784,0.13915718,95225.0,95224.0,0.015]
[1733141109499,0.13915718,95225.0,95224.0,0.009]
[1733141109746,0.13815718,95225.0,95224.0,0.003]
[1733141110233,0.13815718,95225.0,95224.0,0.007]
[1733141112089,0.13815718,95225.0,95224.0,0.004]
[1733141112316,0.13815718,95225.0,95224.0,0.005]
[1733141112786,0.50905897,95225.0,95224.0,0.005]
[1733141113003,0.1738496,95214.0,95209.0,0.0017246]
[1733141113227,0.61354781,95214.0,95209.0,0.0017246]
[1733141113474,0.62259448,95214.0,95209.0,0.0017246]
[1733141114455,0.5105106,95210.0,95209.0,0.0017246]
[1733141114945,0.72520852,95210.0,95209.0,0.0017246]
[1733141115203,0.72181877,95210.0,95209.0,0.0017246]
[1733141115967,0.72181877,95210.0,95209.0,0.00038885]
[1733141116206,0.5122356,95199.0,95198.0,0.00059537]
[1733141116435,0.61508081,95199.0,95198.0,0.00059537]
[1733141116679,0.62071001,95199.0,95198.0,0.00059537]
[1733141117586,0.62571001,95199.0,95198.0,0.00059537]
[1733141118543,0.5228648,95199.0,95198.0,0.00059537]
[1733141119498,0.62571001,95199.0,95198.0,0.00059537]
[1733141119742,0.71501219,95199.0,95198.0,0.00059537]
[1733141119976,0.71701219,95199.0,95198.0,0.00059537]
[1733141122547,0.3839596,95188.0,95187.0,0.0009891]
[1733141122793,0.210119,95184.0,95181.0,0.0017208]
[1733141123260,0.70511679,95184.0,95181.0,0.0017208]
[1733141123266,0.71069339,95184.0,95181.0,0.0017208]
[1733141123528,0.61999041,95184.0,95181.0,0.0017208]
[1733141124247,0.61999041,95184.0,95183.0,0.0067204]
[1733141124493,0.61999041,95184.0,95183.0,0.0017204]
[1733141124741,0.61999041,95184.0,95183.0,0.0047204]
[1733141125457,0.72282187,95184.0,95183.0,0.0057204]
[1733141125906,0.72282187,95184.0,95183.0,0.0047204]
[1733141126344,0.72282187,95184.0,95183.0,0.0017204]
[1733141127790,0.4945496,95182.0,95181.0,0.0017208]
[1733141128049,0.69456335,95182.0,95181.0,0.0017208]
[1733141128267,0.7001218,95182.0,95181.0,0.0017208]
[1733141129195,0.5141946,95172.0,95171.0,0.0017218]
[1733141129455,0.61703981,95172.0,95171.0,0.0017218]
[1733141129672,0.62259826,95172.0,95171.0,0.0017218]
[1733141129907,0.70587219,95172.0,95171.0,0.0017218]
[1733141131073,0.70787219,95172.0,95171.0,0.0017218]
[1733141133437,0.62459826,95172.0,95171.0,0.0017218]
[1733141133700,0.21770345,95172.0,95171.0,0.0017218]
[1733141134161,0.00755845,95172.0,95171.0,0.0017218]
[1733141134396,0.00755845,95172.0,95171.0,0.00458053]
[1733141134641,0.002,95172.0,95171.0,0.00458053]
[1733141135824,0.002,95172.0,95171.0,0.15471661]
[1733141136068,0.002,95172.0,95171.0,0.15657595]
[1733141136762,0.17444497,95199.0,95173.0,0.0261504]
[1733141137015,0.17444497,95199.0,95174.0,0.12770455]
[1733141137293,0.210097,95194.0,95181.0,0.210125]
[1733141137516,0.210097,95194.0,95182.0,0.00185935]
[1733141137730,0.210097,95194.0,95183.0,0.210121]
[1733141137965,0.00659777,95193.0,95184.0,0.00185935]
[1733141138208,0.210101,95192.0,95184.0,0.00185935]
[1733141138450,0.210101,95192.0,95180.0,0.00185937]
[1733141138701,0.210106,95190.0,95180.0,0.00185937]
[1733141138984,0.04268048,95189.0,95171.0,0.0067218]
[1733141139233,0.210132,95178.0,95171.0,0.0067218]
[1733141139511,0.1738496,95185.0,95180.0,0.0009902]
[1733141139719,0.00662091,95177.0,95171.0,0.0017218]
[1733141139940,0.21013,95179.0,95171.0,0.0116818]
[1733141140160,0.00662091,95176.0,95171.0,0.0116818]
[1733141140399,0.21013,95179.0,95171.0,0.0116818]
[1733141140625,0.00662091,95175.0,95171.0,0.0116818]
[1733141140885,0.00662091,95174.0,95171.0,0.0116818]
[1733141141344,0.21113,95179.0,95171.0,0.0196818]
[1733141141562,0.00662091,95173.0,95171.0,0.0116818]
[1733141141800,0.001,95175.0,95171.0,0.0206818]
[1733141142061,0.00662091,95172.0,95171.0,0.0156818]
[1733141142555,0.001,95175.0,95171.0,0.0156818]
[1733141142557,0.001,95174.0,95171.0,0.0246818]
[1733141142837,0.001,95174.0,95171.0,0.0206818]
[1733141143073,0.00662091,95173.0,95171.0,0.0256818]
[1733141143533,0.00662091,95173.0,95171.0,0.0206818]
[1733141143961,0.00662091,95173.0,95171.0,0.0216818]
[1733141144196,0.00662091,95173.0,95171.0,0.0126818]
[1733141144422,0.00662091,95173.0,95172.0,0.000986]
[1733141144673,0.3839666,95185.0,95172.0,0.000986]
[1733141144674,0.001,95175.0,95173.0,0.210143]
[1733141145018,0.001,95175.0,95172.0,0.000986]
[1733141145019,0.1738496,95192.0,95174.0,0.00185949]
[1733141145227,0.210103,95191.0,95180.0,0.210126]
[1733141145484,0.00663017,95191.0,95180.0,0.210126]
[1733141145965,0.0008629,95194.0,95189.0,0.210106]
[1733141146177,0.00663017,95190.0,95189.0,0.210106]
[1733141146409,0.0008629,95194.0,95189.0,0.210106]
[1733141146853,0.00663017,95193.0,95186.0,0.210114]
[1733141147071,0.0008629,95194.0,95187.0,0.01490051]
[1733141147301,0.00663017,95193.0,95186.0,0.210114]
[1733141148046,0.00663017,95193.0,95182.0,0.00185934]
[1733141148257,0.00663017,95193.0,95190.0,0.210105]
[1733141148478,0.0008629,95194.0,95190.0,0.210105]
[1733141149385,0.0008629,95194.0,95191.0,0.00185917]
[1733141149647,0.0008629,95194.0,95193.0,0.0009915]
[1733141151865,0.04604288,95194.0,95193.0,0.0009915]
[1733141152095,0.1738496,95190.0,95171.0,0.0116818]
[1733141152325,0.1738496,95189.0,95171.0,0.0116818]
[1733141152551,0.1738496,95188.0,95180.0,0.0017258]
[1733141152895,0.00663772,95189.0,95180.0,0.0017258]
[1733141153116,0.0008629,95194.0,95193.0,0.002]
[1733141153567,0.0008629,95194.0,95188.0,0.21196728]
[1733141153813,0.0008629,95194.0,95188.0,0.00185928]
[1733141154036,0.0008629,95194.0,95180.0,0.0017258]
[1733141154037,0.0008629,95194.0,95189.0,0.210108]